fUST/lending_fUST_20241029
["ID","MTS","AMOUNT","RATE_DAILY","PERIOD"]
[340934687,1730131205104,2909.32427475,0.00019743,2]
[340934688,1730131429995,162.038179,0.00013973,2]
[340934689,1730131607297,-160.8892045,0.00021629,2]
[340934690,1730131645048,500.0,0.000181,2]
[340934691,1730131645463,500.0,0.000181,2]
[340934692,1730131645799,500.0,0.000181,2]
[340934693,1730131646171,500.0,0.000181,2]
[340934694,1730131646511,500.0,0.000181,2]
[340934695,1730131646834,500.0,0.000181,2]
[340934696,1730131647168,500.0,0.000181,2]
[340934697,1730131647521,500.0,0.000181,2]
[340934698,1730131647873,500.0,0.000181,2]
[340934699,1730131648233,500.0,0.000181,2]
[340934700,1730131648583,500.0,0.000181,2]
[340934701,1730131648970,500.0,0.000181,2]
[340934702,1730131649570,500.0,0.000181,2]
[340934703,1730131649895,500.0,0.000181,2]
[340934704,1730131650292,500.0,0.000181,2]
[340934705,1730131650560,500.0,0.000181,2]
[340934706,1730131650954,563.85107211,0.000181,2]
[340934707,1730131746101,-250.0,0.00021561,2]
[340934708,1730131746122,-695.4817421,0.00021605,2]
[340934709,1730131746142,-528.6443813,0.00021629,2]
[340934710,1730131746162,-220.89532618,0.00021811,2]
[340934711,1730131746182,-1947.25006316,0.00021851,2]
[340934735,1730131831884,-250.0,0.00021474,2]
[340934736,1730131831895,-250.0,0.00021533,2]
[340934737,1730131831905,-250.0,0.00021592,2]
[340934738,1730131831914,-250.0,0.00021651,2]
[340934739,1730131831925,-250.0,0.0002171,2]
[340934740,1730131831934,-250.0,0.00021768,2]
[340934741,1730131831944,-167.52347854,0.00021827,2]
[340934742,1730131831956,-82.47652146,0.00021827,2]
[340934743,1730131831966,-18.49703474,0.00021851,2]
[340934744,1730131831975,-250.0,0.00021886,2]
[340934745,1730131831984,-170.526021,0.00021911,2]
[340934746,1730131831994,-250.0,0.00021945,2]
[340934747,1730131832003,-250.0,0.00022004,2]
[340934748,1730131832012,-250.0,0.00022063,2]
[340934749,1730131832022,-250.0,0.00022122,2]
[340934750,1730131832032,-220.89532617,0.00022153,2]
[340934751,1730131832045,-162.038179,0.00022174,2]
[340934752,1730131832055,-95.56694263,0.00022181,2]
[340934799,1730131838112,-154.43305737,0.00022181,2]
[340934801,1730131838122,-146.06431191,0.0002224,2]
[340934890,1730131839895,-1205.17078076,0.00022,2]
[340934891,1730131839949,-3096.8802219,0.00022,2]
[340934892,1730131839959,-103.93568809,0.0002224,2]
[340934893,1730131839970,-2631.636531,0.00022244,2]
[340934894,1730131839980,-3000.0,0.00022253,2]
[340934895,1730131839990,-250.0,0.00022299,2]
[340934896,1730131840000,-250.0,0.00022357,2]
[340934897,1730131840009,-250.0,0.00022416,2]
[340934898,1730131840018,-3722.8868485,0.00022434,2]
[340934899,1730131840028,-250.0,0.00022475,2]
[340934900,1730131840038,-300.0,0.0002253,2]
[340934901,1730131840047,-300.0,0.0002253,2]
[340934902,1730131840057,-24900.0,0.00022531,2]
[340934903,1730131840066,-250.0,0.00022534,2]
[340934904,1730131840075,-250.0,0.00022593,2]
[340934905,1730131840085,-2631.636531,0.00022929,2]
[340934906,1730131840094,-220.89532617,0.00023088,2]
[340934907,1730131840103,-156.57,0.00023174,2]
[340934908,1730131840113,-166.66666668,0.00023261,2]
[340934909,1730131840122,-175.474865,0.0002328,2]
[340934910,1730131840132,-641.39224252,0.00023287,2]
[340934911,1730131840141,-4109.1556959,0.00023361,2]
[340934912,1730131840151,-961.07591777,0.00023505,2]
[340934913,1730131840160,-150.94,0.00023506,2]
[340934914,1730131840169,-528.0,0.00023506,2]
[340934915,1730131840178,-2396.0,0.00023506,2]
[340934916,1730131840188,-1149.0,0.00023506,2]
[340934917,1730131840197,-2631.636531,0.00023614,2]
[340934918,1730131840206,-166.66666666,0.00023859,2]
[340934919,1730131840215,-160.30986595,0.00024296,2]
[340934920,1730131840224,-7034.34813188,0.00024343,2]
[340934921,1730131840233,-160.30986594,0.00024361,2]
[340934922,1730131840242,-260.0,0.000244,2]
[340934923,1730131840251,-160.30986594,0.00024427,2]
[340934924,1730131840260,-166.66666666,0.00024457,2]
[340934925,1730131840269,-420.0,0.00024469,2]
[340934926,1730131840278,-160.30986594,0.00024492,2]
[340934927,1730131840288,-200.0,0.000245,9]
[340934928,1730131840297,-1000.0,0.00024557,2]
[340934929,1730131840306,-160.30986594,0.00024557,2]
[340934930,1730131840315,-257.34,0.00024627,3]
[340934931,1730131840324,-386.01,0.00024627,3]
[340934932,1730131840333,-18452.9433826,0.00024637,3]
[340934933,1730131840346,-39477.1990192,0.00024637,3]
[340934934,1730131840355,-500.0,0.0002464,2]
[340934935,1730131840364,-328.24139016,0.0002464,2]
[340934936,1730131840373,-275.77609866,0.0002464,2]
[340934937,1730131840382,-7034.34813189,0.00024641,2]
[340934938,1730131840391,-500.0,0.00024646,2]
[340934939,1730131840401,-636.37662369,0.00024646,2]
[340934940,1730131840410,-500.0,0.00024646,2]
[340934941,1730131840420,-500.0,0.00024646,2]
[340934942,1730131840429,-419.34825444,0.00024646,2]
[340934943,1730131840439,-500.0,0.00024646,2]
[340934944,1730131840448,-156.57,0.00024647,2]
[340934945,1730131840457,-55358.8301477,0.00024647,3]
[340934946,1730131840467,-118431.597058,0.00024647,3]
[340934947,1730131840476,-168.573,0.00024647,7]
[340934948,1730131840485,-500.0,0.00024657,4]
[340934949,1730131840494,-500.0,0.00024657,4]
[340934950,1730131840503,-500.0,0.00024657,4]
[340934951,1730131840513,-508.24,0.00024657,4]
[340934952,1730131840522,-500.0,0.00024657,4]
[340934953,1730131840531,-553.70994428,0.00024657,4]
[340934954,1730131840540,-500.0,0.00024657,4]
[340934955,1730131840550,-655.74,0.00024657,4]
[340934956,1730131840559,-500.0,0.00024657,4]
[340934957,1730131840568,-500.0,0.00024657,4]
[340934958,1730131840578,-500.0,0.00024657,4]
[340934959,1730131840594,-500.0,0.00024657,4]
[340934960,1730131840603,-633.78109434,0.00024657,4]
[340934961,1730131840612,-500.0,0.00024657,4]
[340934962,1730131840622,-540.58,0.00024657,4]
[340934963,1730131840632,-500.0,0.00024657,4]
[340934964,1730131840642,-500.0,0.00024657,4]
[340934965,1730131840651,-500.0,0.00024657,4]
[340934966,1730131840661,-500.0,0.00024657,4]
[340934967,1730131840672,-500.0,0.00024657,4]
[340934968,1730131840681,-500.0,0.00024657,4]
[340934969,1730131840691,-584.60166509,0.00024657,4]
[340934970,1730131840700,-500.0,0.00024657,4]
[340934971,1730131840709,-500.0,0.00024657,4]
[340934972,1730131840718,-500.0,0.00024657,4]
[340934973,1730131840727,-500.0,0.00024657,4]
[340934974,1730131840737,-500.94874886,0.00024657,4]
[340934975,1730131840746,-500.0,0.00024657,4]
[340934976,1730131840754,-500.0,0.00024657,4]
[340934977,1730131840764,-256.11092953,0.00024657,4]
[340934978,1730131840773,-500.0,0.00024657,4]
[340934979,1730131840782,-500.0,0.00024657,4]
[340934980,1730131840792,-565.86145136,0.00024657,4]
[340934981,1730131840802,-176.08121308,0.00024657,4]
[340934982,1730131840811,-500.0,0.00024657,4]
[340934983,1730131840820,-500.0,0.00024657,4]
[340934984,1730131840830,-501.46074018,0.00024657,4]
[340934985,1730131840840,-500.0,0.00024657,4]
[340934986,1730131840849,-500.78855139,0.00024657,4]
[340934987,1730131840858,-500.0,0.00024657,4]
[340934988,1730131840867,-501.0542681,0.00024657,4]
[340934989,1730131840877,-500.0,0.00024657,4]
[340934990,1730131840886,-500.0,0.00024657,4]
[340934991,1730131840896,-501.50307458,0.00024657,4]
[340934992,1730131840905,-518.67609027,0.00024657,4]
[340934993,1730131840915,-500.0,0.00024657,4]
[340934994,1730131840924,-500.0,0.00024657,4]
[340934995,1730131840934,-500.0,0.00024657,4]
[340934996,1730131840943,-500.0,0.00024657,4]
[340934997,1730131840952,-501.12747392,0.00024657,4]
[340934998,1730131840961,-500.0,0.00024657,4]
[340934999,1730131840971,-500.0,0.00024657,4]
[340935000,1730131840980,-501.03900518,0.00024657,4]
[340935001,1730131840989,-501.6427327,0.00024657,4]
[340935002,1730131840998,-500.0,0.00024657,4]
[340935003,1730131841008,-500.0,0.00024657,4]
[340935004,1730131841019,-501.34284913,0.00024657,4]
[340935005,1730131841028,-501.96504849,0.00024657,4]
[340935006,1730131841037,-509.311472,0.00024657,4]
[340935007,1730131841047,-501.45274389,0.00024657,4]
[340935008,1730131841056,-500.36813532,0.00024657,4]
[340935009,1730131841065,-500.0,0.00024657,4]
[340935010,1730131841075,-500.0,0.00024657,4]
[340935011,1730131841084,-502.21057118,0.00024657,4]
[340935012,1730131841094,-501.53820558,0.00024657,4]
[340935013,1730131841103,-1232.01,0.00024657,4]
[340935014,1730131841113,-620.44034736,0.00024657,4]
[340935015,1730131841122,-500.0,0.00024657,4]
[340935016,1730131841131,-679.03,0.00024657,4]
[340935017,1730131841140,-515.30139684,0.00024657,4]
[340935018,1730131841150,-500.0,0.00024657,4]
[340935019,1730131841159,-572.26,0.00024657,4]
[340935020,1730131841168,-501.28247273,0.00024657,4]
[340935021,1730131841177,-500.0,0.00024657,4]
[340935022,1730131841187,-500.57200382,0.00024657,4]
[340935023,1730131841196,-503.5065815,0.00024657,4]
[340935024,1730131841206,-500.0,0.00024657,4]
[340935025,1730131841215,-500.0,0.00024657,4]
[340935026,1730131841225,-500.0,0.00024657,4]
[340935027,1730131841234,-500.0,0.00024657,4]
[340935028,1730131841243,-510.88262566,0.00024657,4]
[340935029,1730131841252,-501.50370815,0.00024657,4]
[340935030,1730131841263,-503.48742635,0.00024657,4]
[340935031,1730131841272,-500.0,0.00024657,4]
[340935032,1730131841281,-500.0,0.00024657,4]
[340935033,1730131841290,-500.0,0.00024657,4]
[340935034,1730131841301,-500.0,0.00024657,4]
[340935035,1730131841311,-500.0,0.00024657,4]
[340935036,1730131841320,-502.49165991,0.00024657,4]
[340935037,1730131841330,-500.73681732,0.00024657,4]
[340935038,1730131841483,-500.0,0.00024657,4]
[340935039,1730131841493,-500.0,0.00024657,4]
[340935040,1730131841502,-514.26997058,0.00024657,4]
[340935041,1730131841512,-500.0,0.00024657,4]
[340935042,1730131841521,-500.0,0.00024657,4]
[340935043,1730131841531,-512.71622313,0.00024657,4]
[340935044,1730131841541,-500.0,0.00024657,4]
[340935045,1730131841551,-500.0,0.00024657,4]
[340935046,1730131841560,-500.0,0.00024657,4]
[340935047,1730131841569,-362.93852989,0.00024657,4]
[340935048,1730131841579,-500.0,0.00024657,4]
[340935049,1730131841590,-502.29864489,0.00024657,4]
[340935050,1730131841601,-500.0,0.00024657,4]
[340935051,1730131841610,-500.0,0.00024657,4]
[340935052,1730131841619,-500.0,0.00024657,4]
[340935053,1730131841629,-591.28279263,0.00024657,4]
[340935054,1730131841638,-500.0,0.00024657,4]
[340935055,1730131841647,-500.0,0.00024657,4]
[340935056,1730131841656,-500.0,0.00024657,4]
[340935057,1730131841666,-502.01880431,0.00024657,4]
[340935058,1730131841676,-500.0,0.00024657,4]
[340935059,1730131841685,-500.0,0.00024657,4]
[340935060,1730131841694,-500.0,0.00024657,4]
[340935061,1730131841703,-500.0,0.00024657,4]
[340935062,1730131841712,-500.78838192,0.00024657,4]
[340935063,1730131841722,-500.0,0.00024657,4]
[340935064,1730131841731,-500.0,0.00024657,4]
[340935065,1730131841740,-500.0,0.00024657,4]
[340935066,1730131841750,-500.44034016,0.00024657,4]
[340935067,1730131841759,-565.77984715,0.00024657,4]
[340935068,1730131841768,-500.0,0.00024657,4]
[340935069,1730131841777,-500.0,0.00024657,4]
[340935070,1730131841787,-830.67,0.00024657,4]
[340935071,1730131841796,-500.0,0.00024657,4]
[340935072,1730131841806,-500.0,0.00024657,4]
[340935073,1730131841815,-500.0,0.00024657,4]
[340935074,1730131841824,-500.0,0.00024657,4]
[340935075,1730131841833,-599.9,0.00024657,2]
[340935076,1730131841844,-257.78280506,0.00024657,4]
[340935077,1730131841852,-500.0,0.00024657,4]
[340935078,1730131841862,-501.57544238,0.00024657,4]
[340935079,1730131841872,-500.0,0.00024657,4]
[340935080,1730131841881,-592.31485454,0.00024657,4]
[340935081,1730131841891,-500.95901273,0.00024657,4]
[340935082,1730131841900,-519.31387881,0.00024657,4]
[340935083,1730131841910,-500.0,0.00024657,4]
[340935084,1730131841919,-500.0,0.00024657,4]
[340935085,1730131841928,-500.0,0.00024657,4]
[340935086,1730131841938,-502.81674764,0.00024657,4]
[340935087,1730131841948,-500.0,0.00024657,4]
[340935088,1730131841957,-152.96890859,0.00024657,4]
[340935089,1730131841966,-500.0,0.00024657,4]
[340935090,1730131841976,-500.54879416,0.00024657,4]
[340935091,1730131841985,-500.0,0.00024657,4]
[340935092,1730131841994,-500.0,0.00024657,4]
[340935093,1730131842004,-500.0,0.00024657,4]
[340935094,1730131842013,-501.70985338,0.00024657,4]
[340935095,1730131842023,-1284.99,0.00024657,4]
[340935096,1730131842032,-500.0,0.00024657,4]
[340935097,1730131842042,-500.0,0.00024657,4]
[340935098,1730131842051,-159.29003008,0.00024657,4]
[340935099,1730131842061,-713.57,0.00024657,4]
[340935100,1730131842070,-500.0,0.00024657,4]
[340935101,1730131842079,-567.25,0.00024657,4]
[340935102,1730131842090,-535.14646016,0.00024657,4]
[340935103,1730131842099,-505.81782754,0.00024657,4]
[340935104,1730131842109,-168.20169859,0.00024657,4]
[340935105,1730131842118,-533.35,0.00024657,4]
[340935106,1730131842128,-500.0,0.00024657,4]
[340935107,1730131842138,-500.0,0.00024657,4]
[340935108,1730131842147,-505.27614385,0.00024657,4]
[340935109,1730131842156,-1124.56,0.00024657,4]
[340935110,1730131842166,-500.0,0.00024657,4]
[340935111,1730131842176,-500.0,0.00024657,4]
[340935112,1730131842185,-500.0,0.00024657,4]
[340935113,1730131842195,-500.0,0.00024657,4]
[340935114,1730131842204,-500.0,0.00024657,4]
[340935115,1730131842214,-841.67516678,0.00024657,5]
[340935116,1730131842224,-500.0,0.00024657,4]
[340935117,1730131842232,-513.17897555,0.00024657,4]
[340935118,1730131842242,-500.45868129,0.00024657,4]
[340935120,1730131842253,-501.75055741,0.00024657,4]
[340935121,1730131842262,-500.0,0.00024657,4]
[340935122,1730131842273,-500.0,0.00024657,4]
[340935123,1730131842282,-420.59211386,0.00024657,4]
[340935124,1730131842291,-504.26837411,0.00024657,4]
[340935125,1730131842300,-500.0,0.00024657,4]
[340935126,1730131842310,-500.0,0.00024657,4]
[340935127,1730131842319,-500.0,0.00024657,4]
[340935128,1730131842328,-501.5084308,0.00024657,4]
[340935129,1730131842337,-575.41,0.00024657,4]
[340935130,1730131842348,-501.24402418,0.00024657,4]
[340935131,1730131842358,-500.0,0.00024657,4]
[340935132,1730131842367,-500.0,0.00024657,4]
[340935133,1730131842376,-500.0,0.00024657,4]
[340935134,1730131842385,-500.0,0.00024657,4]
[340935135,1730131842394,-501.36688099,0.00024657,4]
[340935136,1730131842403,-501.98750363,0.00024657,4]
[340935138,1730131842413,-500.0,0.00024657,4]
[340935139,1730131842422,-500.0,0.00024657,4]
[340935142,1730131842431,-500.0,0.00024657,4]
[340935144,1730131842440,-500.0,0.00024657,4]
[340935146,1730131842449,-500.0,0.00024657,4]
[340935148,1730131842459,-500.0,0.00024657,4]
[340935149,1730131842468,-506.46186259,0.00024657,4]
[340935150,1730131842477,-500.0,0.00024657,4]
[340935151,1730131842488,-500.0,0.00024657,4]
[340935152,1730131842497,-514.40637943,0.00024657,4]
[340935153,1730131842507,-500.0,0.00024657,4]
[340935154,1730131842516,-500.0,0.00024657,4]
[340935155,1730131842525,-302.38296449,0.00024657,4]
[340935156,1730131842535,-500.0,0.00024657,4]
[340935157,1730131842544,-501.99190975,0.00024657,4]
[340935158,1730131842553,-500.0,0.00024657,4]
[340935159,1730131842562,-501.20099154,0.00024657,4]
[340935160,1730131842571,-502.15345898,0.00024657,4]
[340935161,1730131842580,-1006.48,0.00024657,4]
[340935162,1730131842591,-504.56161012,0.00024657,4]
[340935163,1730131842601,-314.9,0.00024657,4]
[340935164,1730131842611,-500.0,0.00024657,4]
[340935165,1730131842620,-508.86487842,0.00024657,4]
[340935166,1730131842630,-500.0,0.00024657,4]
[340935167,1730131842640,-500.0,0.00024657,4]
[340935168,1730131842649,-500.0,0.00024657,4]
[340935169,1730131842659,-500.0,0.00024657,4]
[340935170,1730131842669,-500.0,0.00024657,4]
[340935171,1730131842679,-500.0,0.00024657,4]
[340935172,1730131842689,-500.0,0.00024657,4]
[340935173,1730131842699,-500.0,0.00024657,4]
[340935174,1730131842708,-500.0,0.00024657,4]
[340935175,1730131842717,-500.0,0.00024657,4]
[340935177,1730131842726,-586.37,0.00024657,4]
[340935179,1730131842735,-642.25,0.00024657,4]
[340935180,1730131842745,-500.0,0.00024657,4]
[340935182,1730131842754,-500.0,0.00024657,4]
[340935184,1730131842764,-500.0,0.00024657,4]
[340935186,1730131842773,-219.8287373,0.00024657,4]
[340935188,1730131842783,-437.57662777,0.00024657,4]
[340935190,1730131842793,-503.87606996,0.00024657,4]
[340935192,1730131842802,-500.0,0.00024657,4]
[340935194,1730131842812,-509.7746637,0.00024657,4]
[340935196,1730131842821,-507.7803169,0.00024657,4]
[340935198,1730131842831,-500.0,0.00024657,4]
[340935200,1730131842841,-500.0,0.00024657,4]
[340935202,1730131842850,-500.0,0.00024657,4]
[340935204,1730131842859,-500.0,0.00024657,4]
[340935205,1730131842868,-500.0,0.00024657,4]
[340935207,1730131842878,-500.0,0.00024657,4]
[340935209,1730131842888,-497.85025913,0.00024657,4]
[340935211,1730131842898,-500.0,0.00024657,4]
[340935213,1730131842907,-500.0,0.00024657,4]
[340935215,1730131842917,-503.23033688,0.00024657,4]
[340935217,1730131842926,-500.0,0.00024657,4]
[340935219,1730131842935,-500.0,0.00024657,4]
[340935221,1730131842945,-544.42910539,0.00024657,4]
[340935223,1730131842954,-501.79827069,0.00024657,4]
[340935225,1730131842964,-500.0,0.00024657,4]
[340935227,1730131842973,-500.0,0.00024657,4]
[340935229,1730131842982,-500.0,0.00024657,4]
[340935231,1730131842992,-500.0,0.00024657,4]
[340935233,1730131843001,-500.0,0.00024657,4]
[340935235,1730131843010,-500.0,0.00024657,4]
[340935237,1730131843020,-500.0,0.00024657,4]
[340935239,1730131843029,-501.41828995,0.00024657,4]
[340935241,1730131843038,-500.0,0.00024657,4]
[340935243,1730131843048,-503.30523225,0.00024657,4]
[340935245,1730131843057,-500.0,0.00024657,4]
[340935247,1730131843066,-559.51227185,0.00024657,4]
[340935249,1730131843075,-500.0,0.00024657,4]
[340935251,1730131843084,-500.0,0.00024657,4]
[340935253,1730131843095,-500.0,0.00024657,4]
[340935255,1730131843104,-500.0,0.00024657,4]
[340935257,1730131843113,-501.90343083,0.00024657,4]
[340935259,1730131843123,-500.0,0.00024657,4]
[340935261,1730131843132,-522.26095283,0.00024657,4]
[340935263,1730131843141,-500.0,0.00024657,4]
[340935265,1730131843150,-500.0,0.00024657,4]
[340935267,1730131843159,-540.05,0.00024657,4]
[340935268,1730131843168,-517.52446984,0.00024657,4]
[340935270,1730131843177,-500.0,0.00024657,4]
[340935271,1730131843186,-500.0,0.00024657,4]
[340935273,1730131843196,-500.0,0.00024657,4]
[340935274,1730131843205,-500.0,0.00024657,4]
[340935275,1730131843214,-500.0,0.00024657,4]
[340935276,1730131843224,-500.0,0.00024657,4]
[340935277,1730131843233,-520.19580831,0.00024657,4]
[340935278,1730131843242,-500.0,0.00024657,4]
[340935279,1730131843251,-500.0,0.00024657,4]
[340935280,1730131843260,-840.09,0.00024657,4]
[340935281,1730131843269,-528.06190249,0.00024657,4]
[340935282,1730131843278,-500.0,0.00024657,4]
[340935283,1730131843287,-500.0,0.00024657,4]
[340935284,1730131843297,-500.0,0.00024657,4]
[340935285,1730131843306,-501.52871171,0.00024657,4]
[340935286,1730131843316,-542.7,0.00024657,4]
[340935287,1730131843325,-503.258913,0.00024657,4]
[340935288,1730131843334,-500.0,0.00024657,4]
[340935289,1730131843344,-500.0,0.00024657,4]
[340935290,1730131843353,-200.0,0.00024657,4]
[340935291,1730131843363,-500.0,0.00024657,4]
[340935292,1730131843372,-500.0,0.00024657,4]
[340935293,1730131843382,-500.0,0.00024657,4]
[340935294,1730131843392,-873.87,0.00024657,4]
[340935295,1730131843402,-500.0,0.00024657,4]
[340935296,1730131843411,-500.0,0.00024657,4]
[340935297,1730131843421,-501.57517822,0.00024657,4]
[340935298,1730131843433,-500.0,0.00024657,4]
[340935299,1730131843443,-500.0,0.00024657,4]
[340935300,1730131843452,-500.0,0.00024657,4]
[340935301,1730131843462,-500.0,0.00024657,4]
[340935302,1730131843471,-502.86516743,0.00024657,4]
[340935303,1730131843480,-500.0,0.00024657,4]
[340935304,1730131843490,-501.74183295,0.00024657,4]
[340935305,1730131843499,-503.62438651,0.00024657,4]
[340935306,1730131843508,-500.0,0.00024657,4]
[340935307,1730131843518,-500.0,0.00024657,4]
[340935308,1730131843527,-500.0,0.00024657,4]
[340935309,1730131843537,-500.0,0.00024657,4]
[340935310,1730131843546,-500.0,0.00024657,4]
[340935311,1730131843556,-500.0,0.00024657,4]
[340935312,1730131843566,-500.0,0.00024657,4]
[340935313,1730131843575,-501.45061328,0.00024657,4]
[340935314,1730131843584,-500.0,0.00024657,4]
[340935315,1730131843595,-500.0,0.00024657,4]
[340935316,1730131843605,-293.87,0.00024657,4]
[340935317,1730131843615,-500.0,0.00024657,4]
[340935318,1730131843624,-505.30582931,0.00024657,4]
[340935319,1730131843635,-500.89,0.00024657,4]
[340935320,1730131843645,-500.0,0.00024657,4]
[340935321,1730131843654,-500.0,0.00024657,4]
[340935322,1730131843664,-500.0,0.00024657,4]
[340935323,1730131843673,-500.0,0.00024657,4]
[340935324,1730131843682,-500.0,0.00024657,4]
[340935325,1730131843692,-500.0,0.00024657,4]
[340935326,1730131843702,-500.0,0.00024657,4]
[340935327,1730131843711,-502.17867385,0.00024657,4]
[340935328,1730131843720,-500.0,0.00024657,4]
[340935329,1730131843729,-500.0,0.00024657,4]
[340935330,1730131843738,-502.21225408,0.00024657,4]
[340935331,1730131843748,-500.0,0.00024657,4]
[340935332,1730131843759,-502.26951507,0.00024657,4]
[340935333,1730131843768,-500.0,0.00024657,4]
[340935334,1730131843778,-1000.0,0.00024657,4]
[340935335,1730131843788,-500.0,0.00024657,4]
[340935336,1730131843798,-291.19995928,0.00024657,4]
[340935337,1730131843808,-500.0,0.00024657,4]
[340935338,1730131843818,-500.0,0.00024657,4]
[340935339,1730131843828,-500.0,0.00024657,4]
[340935340,1730131843838,-500.0,0.00024657,4]
[340935341,1730131843849,-500.0,0.00024657,4]
[340935342,1730131843858,-580.77,0.00024657,4]
[340935343,1730131843868,-500.0,0.00024657,4]
[340935344,1730131843878,-504.39942117,0.00024657,4]
[340935345,1730131843887,-500.0,0.00024657,4]
[340935346,1730131843897,-568.48482583,0.00024657,4]
[340935347,1730131843907,-506.13195398,0.00024657,4]
[340935348,1730131843917,-507.48209136,0.00024657,4]
[340935349,1730131843927,-505.49586885,0.00024657,4]
[340935350,1730131843936,-501.12389594,0.00024657,4]
[340935351,1730131843945,-500.0,0.00024657,4]
[340935352,1730131843955,-500.0,0.00024657,4]
[340935353,1730131843964,-515.98144861,0.00024657,4]
[340935354,1730131843974,-826.84,0.00024657,4]
[340935355,1730131843983,-500.0,0.00024657,4]
[340935356,1730131843993,-510.01912646,0.00024657,4]
[340935357,1730131844002,-500.0,0.00024657,4]
[340935358,1730131844012,-500.0,0.00024657,4]
[340935359,1730131844021,-500.0,0.00024657,4]
[340935360,1730131844031,-551.26817398,0.00024657,4]
[340935361,1730131844040,-505.59217188,0.00024657,4]
[340935362,1730131844050,-500.0,0.00024657,4]
[340935363,1730131844059,-500.0,0.00024657,4]
[340935364,1730131844069,-500.0,0.00024657,4]
[340935365,1730131844078,-500.0,0.00024657,4]
[340935366,1730131844087,-500.0,0.00024657,4]
[340935367,1730131844098,-500.0,0.00024657,4]
[340935368,1730131844107,-500.0,0.00024657,4]
[340935369,1730131844116,-504.33232519,0.00024657,4]
[340935370,1730131844125,-500.0,0.00024657,4]
[340935371,1730131844135,-2160.78,0.00024657,4]
[340935372,1730131844145,-500.0,0.00024657,4]
[340935373,1730131844155,-502.20937741,0.00024657,4]
[340935374,1730131844164,-500.0,0.00024657,4]
[340935375,1730131844174,-501.65071303,0.00024657,4]
[340935376,1730131844184,-500.0,0.00024657,4]
[340935377,1730131844193,-500.0,0.00024657,4]
[340935378,1730131844203,-501.84673469,0.00024657,4]
[340935379,1730131844212,-500.0,0.00024657,4]
[340935380,1730131844222,-500.0,0.00024657,4]
[340935381,1730131844232,-502.18326778,0.00024657,4]
[340935382,1730131844242,-500.0,0.00024657,4]
[340935383,1730131844252,-500.0,0.00024657,4]
[340935384,1730131844262,-501.51890291,0.00024657,4]
[340935385,1730131844271,-500.0,0.00024657,4]
[340935386,1730131844281,-503.59419353,0.00024657,4]
[340935387,1730131844291,-3453.64,0.00024657,4]
[340935388,1730131844301,-500.0,0.00024657,4]
[340935389,1730131844310,-502.32471511,0.00024657,4]
[340935390,1730131844319,-500.0,0.00024657,4]
[340935391,1730131844329,-503.08182075,0.00024657,4]
[340935392,1730131844338,-500.0,0.00024657,4]
[340935393,1730131844352,-500.0,0.00024657,4]
[340935394,1730131844361,-500.0,0.00024657,4]
[340935395,1730131844371,-374.62891161,0.00024657,4]
[340935396,1730131844381,-500.0,0.00024657,4]
[340935397,1730131844390,-502.2039343,0.00024657,4]
[340935398,1730131844400,-500.0,0.00024657,4]